fUST/lending_fUST_20240521
["ID","MTS","AMOUNT","RATE_DAILY","PERIOD"]
[327658175,1716287434873,-500.0,0.00020926,2]
[327658176,1716287434883,-500.0,0.00020926,2]
[327658177,1716287434892,-500.0,0.00020926,2]
[327658178,1716287434902,-500.0,0.00020926,2]
[327658179,1716287434911,-500.0,0.00020926,2]
[327658180,1716287434920,-500.0,0.00020926,2]
[327658181,1716287434931,-500.0,0.00020926,2]
[327658182,1716287434941,-500.0,0.00020926,2]
[327658183,1716287434950,-500.0,0.00020926,2]
[327658184,1716287434959,-500.0,0.00020926,2]
[327658185,1716287434969,-500.0,0.00020926,2]
[327658186,1716287434978,-250.0,0.00020926,2]
[327658187,1716287434987,-612.5,0.00020926,2]
[327658188,1716287434997,-612.5,0.00020926,2]
[327658189,1716287435006,-612.5,0.00020926,2]
[327658190,1716287435016,-612.5,0.00020926,2]
[327658191,1716287435026,-612.5,0.00020926,2]
[327658192,1716287435035,-612.5,0.00020926,2]
[327658193,1716287435045,-612.5,0.00020926,2]
[327658194,1716287435054,-612.5,0.00020926,2]
[327658195,1716287435063,-612.5,0.00020926,2]
[327658196,1716287435073,-237.5,0.00020926,2]
[327658197,1716287435083,-275.61570725,0.00022602,2]
[327658198,1716287435095,-185.617156,0.00024384,2]
[327658199,1716287435105,-1136.44476732,0.0002739,2]
[327658200,1716287435115,-204.35362166,0.00027397,2]
[327658201,1716287435125,-1077.03484019,0.00029834,3]
[327658202,1716287435135,-288.2118729,0.00029835,2]
[327658203,1716287435144,-4064.32757817,0.00029905,2]
[327658310,1716287439963,-273.22762777,9.9e-05,2]
[327658314,1716287439974,-159.74777818,0.00029905,2]
[327658316,1716287439984,-417.32360569,0.00029973,2]
[327658318,1716287439993,-2000.0,0.00030036,2]
[327658320,1716287440003,-162.484759,0.00030036,2]
[327658322,1716287440014,-162.484759,0.00030036,2]
[327658324,1716287440023,-151.0,0.00030036,2]
[327658326,1716287440033,-151.0,0.00030036,2]
[327658328,1716287440043,-151.0,0.00030036,2]
[327658330,1716287440052,-281.0,0.000301,2]
[327658332,1716287440062,-244.76215664,0.00030126,2]
[327658334,1716287440074,-60.43690836,0.00030126,2]
[327658336,1716287440086,-305.199065,0.00030126,2]
[327658338,1716287440097,-634.93499607,0.00030126,3]
[327658387,1716287442837,-302.71500393,0.00030126,3]
[327658388,1716287442848,-112.12368316,0.00030126,3]
[327658484,1716287444488,-1351.85631684,0.00030126,3]
[327658486,1716287444499,-1219.98,0.00030127,3]
[327658488,1716287444508,-930.49755213,0.00030136,4]
[327658491,1716287444518,-275.37834499,0.00030136,2]
[327658494,1716287444527,-4405.27980864,0.00030136,4]
[327658496,1716287444538,-23384.30633886,0.00030136,4]
[327658498,1716287444547,-301.72923525,0.00030136,4]
[327658500,1716287444557,-475.45744953,0.00030136,2]
[327658502,1716287444566,-1173.4604615,0.00030136,2]
[327658504,1716287444575,-210.23749957,0.00030136,2]
[327658506,1716287444584,-151.0,0.00030136,2]
[327658508,1716287444594,-247.016976,0.00030136,2]
[327658510,1716287444603,-151.0,0.00030136,2]
[327658512,1716287444612,-151.0,0.00030136,2]
[327658514,1716287444621,-4813.70106343,0.00030136,4]
[327658516,1716287444631,-151.0,0.00030136,2]
[327658518,1716287444640,-151.0,0.00030136,2]
[327658520,1716287444649,-271.960248,0.00030136,2]
[327658522,1716287444658,-271.960248,0.00030136,2]
[327658524,1716287444667,-395.090381,0.00030136,2]
[327658526,1716287444677,-395.090381,0.00030136,2]
[327658528,1716287444686,-225.900851,0.00030136,2]
[327658530,1716287444695,-225.900851,0.00030136,2]
[327658532,1716287444705,-305.199065,0.00030136,2]
[327658534,1716287444715,-305.199065,0.00030136,2]
[327658536,1716287444724,-162.484759,0.00030136,2]
[327658538,1716287444733,-162.484759,0.00030136,2]
[327658540,1716287444743,-151.0,0.00030136,2]
[327658542,1716287444752,-151.450604,0.00030136,2]
[327658544,1716287444761,-216.774614,0.00030136,2]
[327658546,1716287444771,-169.4173,0.00030136,2]
[327658548,1716287444780,-54513.25667652,0.00030137,7]
[327658550,1716287444789,-2538.306843,0.00030137,2]
[327658552,1716287444798,-2538.306843,0.00030137,2]
[327658554,1716287444808,-2538.306843,0.00030137,2]
[327658556,1716287444818,-2538.306843,0.00030137,2]
[327658558,1716287444828,-151.0,0.00030137,2]
[327658560,1716287444837,-151.0,0.00030137,2]
[327658562,1716287444848,-151.0,0.00030137,2]
[327658564,1716287444857,-151.0,0.00030137,2]
[327658566,1716287444867,-151.0,0.00030137,2]
[327658568,1716287444876,-151.0,0.00030137,2]
[327658570,1716287444886,-271.960248,0.00030137,2]
[327658572,1716287444895,-271.960248,0.00030137,2]
[327658574,1716287444905,-271.960248,0.00030137,2]
[327658576,1716287444916,-271.960248,0.00030137,2]
[327658578,1716287444925,-395.090381,0.00030137,2]
[327658580,1716287444935,-395.090381,0.00030137,2]
[327658582,1716287444944,-395.090381,0.00030137,2]
[327658584,1716287444954,-395.090381,0.00030137,2]
[327658586,1716287444963,-225.900851,0.00030137,2]
[327658588,1716287444972,-225.900851,0.00030137,2]
[327658590,1716287444982,-225.900851,0.00030137,2]
[327658592,1716287444991,-225.900851,0.00030137,2]
[327658594,1716287445001,-305.199065,0.00030137,2]
[327658596,1716287445010,-305.199065,0.00030137,2]
[327658598,1716287445020,-305.199065,0.00030137,2]
[327658599,1716287445029,-305.199065,0.00030137,2]
[327658601,1716287445038,-162.484759,0.00030137,2]
[327658603,1716287445048,-162.484759,0.00030137,2]
[327658605,1716287445057,-162.484759,0.00030137,2]
[327658607,1716287445067,-162.484759,0.00030137,2]
[327658609,1716287445076,-151.0,0.00030137,2]
[327658611,1716287445086,-151.0,0.00030137,2]
[327658613,1716287445097,-2538.306843,0.00030137,2]
[327658615,1716287445106,-2538.306843,0.00030137,2]
[327658617,1716287445115,-2538.306843,0.00030137,2]
[327658619,1716287445124,-406.24003374,0.00030137,2]
[327658622,1716287445136,-716.0,0.00030137,2]
[327658646,1716287447682,-2000.0,0.00029936,2]
[327658648,1716287447692,-1031.51569259,0.00030137,2]
[327658656,1716287633867,1369.36509052,0.00024383,7]
[327658722,1716287779628,1451.93,0.00024383,10]
[327658728,1716287883702,8359.30305888,0.00020912,7]
[327658803,1716288240601,266.61015013,0.00018166,7]
[327658804,1716288320370,8359.30305888,0.00020913,7]
[327658834,1716288633170,-410.5949292,9.985e-05,2]
[327658836,1716288633180,-2466.79092142,9.986e-05,2]
[327658838,1716288633190,-641.94,0.00010959,2]
[327658840,1716288633199,-348.35625733,0.00016883,2]
[327658841,1716288633208,-684.8282798,0.00016884,2]
[327658842,1716288633217,-174.65826339,0.00016885,2]
[327658843,1716288633226,-250.0,0.00016887,2]
[327658844,1716288633236,-168.53612318,0.00017696,2]
[327658845,1716288633244,-1066.53502169,0.0001779,2]
[327658846,1716288633256,-34556.19279706,0.0001779,2]
[327658847,1716288633265,-18192.75140859,0.00017795,2]
[327658863,1716288639140,-11199.29585085,0.00017795,2]
[327658865,1716288639152,-997.70075808,0.00017795,2]
[327658878,1716288641286,-7940.70280962,0.00017795,2]
[327658881,1716288641299,-1043.28965634,0.00017795,2]
[327658883,1716288641310,-6635.34953042,0.00017795,2]
[327658885,1716288641322,-3865.363186,0.00017795,2]
[327658942,1716288644655,-632.50000025,0.00017795,2]
[327658952,1716288644710,-17581.09171758,0.00017795,2]
[327658954,1716288644720,-11424.194026,0.00017796,2]
[327658956,1716288644729,-198.7612308,0.0001817,2]
[327658958,1716288644738,-162.560857,0.00019177,2]
[327658960,1716288644747,-297.30156942,0.00019178,2]
[327658963,1716288644757,-231.05268876,0.00019178,2]
[327658964,1716288644765,-188.047818,0.00019178,2]
[327658966,1716288644774,-500.0,0.00019178,2]
[327658968,1716288644783,-500.0,0.00019178,2]
[327658971,1716288644792,-500.0,0.00019178,2]
[327658972,1716288644801,-500.0,0.00019178,2]
[327658974,1716288644811,-500.0,0.00019178,2]
[327658977,1716288644820,-500.0,0.00019178,2]
[327658979,1716288644831,-500.0,0.00019178,2]
[327658981,1716288644844,-500.0,0.00019178,2]
[327658983,1716288644853,-252.89135679,0.00019178,2]
[327658985,1716288644864,-500.0,0.00019178,2]
[327658987,1716288644873,-500.0,0.00019178,2]
[327658989,1716288644883,-500.0,0.00019178,2]
[327658991,1716288644892,-500.0,0.00019178,2]
[327658993,1716288644901,-500.0,0.00019178,2]
[327658995,1716288644911,-500.0,0.00019178,2]
[327658997,1716288644920,-500.0,0.00019178,2]
[327658999,1716288644930,-500.0,0.00019178,2]
[327659001,1716288644939,-500.0,0.00019178,2]
[327659003,1716288644948,-500.0,0.00019178,2]
[327659005,1716288644956,-500.0,0.00019178,2]
[327659007,1716288644965,-500.0,0.00019178,2]
[327659008,1716288644974,-500.0,0.00019178,2]
[327659010,1716288644983,-500.0,0.00019178,2]
[327659012,1716288644993,-500.0,0.00019178,2]
[327659014,1716288645002,-500.0,0.00019178,2]
[327659016,1716288645011,-500.0,0.00019178,2]
[327659018,1716288645020,-500.0,0.00019178,2]
[327659020,1716288645029,-500.0,0.00019178,2]
[327659022,1716288645038,-500.0,0.00019178,2]
[327659024,1716288645048,-500.0,0.00019178,2]
[327659026,1716288645058,-500.0,0.00019178,2]
[327659028,1716288645067,-273.30037001,0.00019178,2]
[327659030,1716288645076,-224.57275938,0.00020913,2]
[327659032,1716288645085,-364.79903492,0.00022603,2]
[327659034,1716288645094,-176.336298,0.00024384,2]
[327659037,1716288645104,-1136.44476732,0.0002739,2]
[327659039,1716288645115,-847.21,0.0002899,3]
[327659041,1716288645124,-706.01,0.0002899,3]
[327659042,1716288645135,-11103.20254127,0.00029,2]
[327659045,1716288645146,-355.39159088,0.00029,2]
[327659047,1716288645156,-316.17122984,0.00029825,3]
[327659049,1716288645167,-700.47877016,0.00029825,3]
[327659051,1716288645176,-861.62787215,0.00029835,3]
[327659053,1716288645186,-4224.07535635,0.00030023,2]
[327659055,1716288645195,-417.32360569,0.00030082,2]
[327659057,1716288645204,-281.0,0.000301,2]
[327659059,1716288645213,-588.34,0.00030126,3]
[327659061,1716288645222,-464.17713943,0.00030136,2]
[327659063,1716288645232,-176.336298,0.0003031,2]
[327659065,1716288645241,-153.0,0.00030855,2]
[327659067,1716288645251,-496.0,0.00031018,2]
[327659069,1716288645259,-15455.97045845,0.00031477,30]
[327659071,1716288645271,-12768.26089616,0.00031477,30]
[327659269,1716288647170,-9936.99224539,0.00031477,30]
[327659271,1716288647180,-151.0,0.00031495,2]
[327659273,1716288647190,-1000.0,0.00032,40]
[327659275,1716288647200,-784.01078807,0.00032667,6]
[327660460,1716288791248,-456.46451312,9.999e-05,2]
[327660461,1716288820681,-587.07097376,9.999e-05,2]
[327660462,1716288845268,224.57275938,9.999e-05,2]
[327660463,1716288861278,101.2852931,9.999e-05,2]
[327660464,1716288861309,123.28746628,9.999e-05,2]
[327660465,1716288877295,224.57275938,9.999e-05,2]
[327660466,1716288895291,360.20814872,9.999e-05,2]
[327660513,1716289832454,-174.65826339,0.00014994,2]
[327660515,1716289832463,-181.49361007,0.00014995,2]
[327660517,1716289832474,-684.8282798,0.00014998,2]
[327660519,1716289832483,-155.0310062,0.00018452,2]
[327660521,1716289832492,-161.00975163,0.00018453,2]
[327660522,1716289832501,-250.0,0.00018559,2]
[327660523,1716289832511,-1023.39103158,0.00019077,2]
[327660524,1716289832520,-163.492418,0.00019178,2]
[327660525,1716289832529,-158.702668,0.00024384,2]
[327660526,1716289832539,-1136.74590385,0.0002739,2]
[327660527,1716289832548,-158.702668,0.0003031,2]
[327660528,1716289832557,-150.44,0.00031153,2]
[327660529,1716289832567,-496.0,0.00031153,2]
[327660530,1716289832576,-689.30229772,0.0003118,3]
[327660531,1716289832585,-4224.07535635,0.00031317,2]
[327660532,1716289832595,-417.32360569,0.00031394,2]
[327660533,1716289832604,-281.0,0.000326,5]
[327660534,1716289832614,-160.0,0.000326,7]
[327660535,1716289832624,-798.62104951,0.00032667,6]
[327660536,1716289832633,-158.37906013,0.00032667,2]
[327660537,1716289832643,-500.0,0.00032668,2]
[327660538,1716289832653,-419.25559667,0.00032668,2]
[327660539,1716289832663,-10258.23081447,0.00032669,2]
[327660545,1716289832759,-1225.79,0.00032669,2]
[327660615,1716289838733,-852.252,0.00032669,2]
[327660821,1716289841487,-251.37512704,0.00032669,2]
[327660824,1716289841498,-2959.48971784,0.00032669,2]
[327661278,1716289846320,-1721.4188608,0.00032669,2]
[327662680,1716290285663,2435.8,0.00025,60]
[327662681,1716290296707,156.4485373,9.999e-05,2]
[327662682,1716290300326,155.03875969,9.999e-05,2]
[327662683,1716290303339,371.21737233,9.999e-05,2]
[327662684,1716290314500,109.2269563,9.999e-05,2]
[327662685,1716290314532,1042.10800461,9.999e-05,2]
[327662686,1716290315320,266.61015013,9.999e-05,7]
[327662687,1716290344959,8359.30305888,0.00020809,7]
[327662688,1716290348388,155.04341216,9.999e-05,2]
[327662781,1716291033058,-283.68900956,0.00013879,2]
[327662783,1716291033068,-250.0,0.0001388,2]
[327662785,1716291033077,-5223.06506267,0.00013892,2]
[327662787,1716291033090,-8629.37167228,0.00013892,2]
[327662789,1716291033101,-600.0,0.00013892,2]
[327662792,1716291033113,-8830.46637793,0.00013892,2]
[327662794,1716291033125,-1617.09688712,0.00013892,2]
[327662796,1716291033134,-174.65826339,0.00014835,2]
[327662798,1716291033144,-684.8282798,0.00014838,2]
[327662800,1716291033154,-181.49361007,0.00014839,2]
[327662802,1716291033171,-354.2038697,0.00014841,2]
[327662804,1716291033191,-4474.17492215,0.00014999,2]
[327662806,1716291033214,-383.7998292,0.00014999,2]
[327663041,1716291039462,-4704.3047261,0.00014999,2]
[327663043,1716291039472,-2830.6952739,0.00015,2]
[327663566,1716291044818,-732.43865085,0.00015,2]
[327663671,1716291045736,-8286.3024097,0.00015,2]
[327665886,1716291094215,302.84858323,9.999e-05,2]
[327665887,1716291094248,399.95901409,9.999e-05,2]
[327665888,1716291146776,302.38073973,9.999e-05,2]
[327665889,1716291148222,487.85550363,9.999e-05,2]
[327665890,1716291156923,309.80474255,9.999e-05,2]
[327665938,1716292145405,454.21873756,0.000265,120]
[327665939,1716292193010,201.70617851,9.898e-05,2]
[327665984,1716292232628,-410.5949292,9.997e-05,2]
[327665986,1716292232638,-2466.79092142,9.998e-05,2]
[327665988,1716292232648,-21.25957871,9.999e-05,2]
[327665990,1716292232658,-250.0,0.00012805,2]
[327665991,1716292232668,-187.3718748,0.00012998,2]
[327665993,1716292232678,-5648.39164605,0.00013114,2]
[327665995,1716292232690,-8500.62832772,0.00013114,2]
[327665999,1716292232721,-524.18057673,0.00013114,2]
[327666001,1716292232730,-181.49361007,0.00013599,2]
[327666003,1716292232739,-288.2118729,0.000136,2]
[327666005,1716292232748,-2891.56733537,0.00014721,2]
[327666048,1716292238742,-677.04794792,0.00014721,2]
[327666050,1716292238756,-655.46007306,0.00014721,2]
[327666052,1716292238766,-174.65826339,0.0001479,2]
[327666055,1716292238778,-417.32360569,0.00014791,2]
[327666057,1716292238788,-22.12004862,0.00014918,2]
[327666059,1716292238800,-132.92336354,0.00014918,2]
[327666061,1716292238809,-441.41515646,0.00015,2]
[327666066,1716292238852,-5384.88754304,0.00015,2]
[327666068,1716292238863,-445.191,0.00015,2]
[327666453,1716292242986,-16630.64423694,0.00015,2]
[327666454,1716292242998,-311.20545213,0.00015,2]
[327666461,1716292243078,-2822.40981283,0.00015,2]
[327666502,1716292244218,-5534.14479226,0.00015,2]
[327667031,1716292983580,496.61974189,9.896e-05,2]
[327667032,1716292987342,189.64973947,9.898e-05,2]
[327667033,1716293065612,155.01395126,9.403e-05,2]
[327667034,1716293079614,167.85404681,9.403e-05,2]
[327667075,1716293432038,-155.01550155,9.966e-05,2]
[327667077,1716293432048,-1717.62384614,9.967e-05,2]
[327667079,1716293432058,-1581.91498407,9.967e-05,2]
[327667081,1716293432067,-528.62113532,9.968e-05,2]
[327667083,1716293432076,-194.5093511,9.969e-05,2]
[327667085,1716293432086,-1101.00384418,9.969e-05,2]
[327667088,1716293432098,-238.32567417,9.969e-05,2]
[327667090,1716293432107,-465.43796933,9.998e-05,2]
[327667146,1716293438220,-487.85550363,9.966e-05,2]
[327667147,1716293438230,-219.39031047,9.998e-05,2]
[327667148,1716293438240,-181.49361007,0.00014545,2]
[327667149,1716293438250,-3052.56057583,0.00015,2]
[327667150,1716293438285,-253.98499995,0.00015,2]
[327667151,1716293438297,-355.74300003,0.00015,2]
[327667152,1716293438309,-1790.00061627,0.00015,2]
[327667156,1716293440264,-417.32360569,0.00014573,2]
[327667157,1716293440274,-4224.07535635,0.00014626,2]
[327667158,1716293440290,-1575.97037097,0.00015,2]
[327667274,1716293443309,-28594.4682557,0.00015,2]
[327667276,1716293443319,-155.01550155,0.00015,2]
[327667277,1716293443328,-9796.30669773,0.00016495,2]
[327667349,1716294632427,-155.0,0.0001545,2]
[327667351,1716294632437,-181.49361007,0.0001545,2]
[327667352,1716294632447,-144.135683,0.00015451,2]
[327667449,1716294638930,-105.864317,0.00015451,2]
[327667451,1716294638940,-417.32360569,0.0001631,2]
[327667453,1716294638951,-2850.94805981,0.00016349,2]
[327667455,1716294638963,-1373.12729654,0.00016349,2]
[327667457,1716294638973,-58291.73822,0.00016495,2]
[327667459,1716294638983,-7894.71199839,0.00016499,2]
[327667461,1716294638993,-155.0,0.000165,2]
[327667463,1716294639003,-107560.0,0.00018,2]
[327667466,1716294639014,-275.61570725,0.00018,2]
[327667468,1716294639024,-170.35781374,0.000189,2]
[327667470,1716294639035,-301.879177,0.00019178,2]
[327667472,1716294639045,-151.0,0.00019178,2]
[327667474,1716294639059,-377.387708,0.00019178,2]
[327667476,1716294639068,-377.387708,0.00019178,2]
[327667478,1716294639078,-377.38605831,0.00019178,2]
[327667480,1716294639088,-500.0,0.00019178,2]
[327667482,1716294639098,-438.778242,0.00019178,2]
[327667484,1716294639108,-500.0,0.00019178,2]
[327667486,1716294639120,-500.0,0.00019178,2]
[327667488,1716294639130,-500.0,0.00019178,2]
[327667490,1716294639140,-485.59256339,0.00019178,2]
[327667492,1716294639150,-500.0,0.00019178,2]
[327667495,1716294639160,-500.0,0.00019178,2]
[327667497,1716294639170,-500.0,0.00019178,2]
[327667499,1716294639180,-500.0,0.00019178,2]
[327667501,1716294639190,-500.0,0.00019178,2]
[327667503,1716294639201,-215.94723954,0.00019178,2]
[327667505,1716294639211,-500.0,0.00019178,2]
[327667507,1716294639221,-500.0,0.00019178,2]
[327667509,1716294639231,-500.0,0.00019178,2]
[327667511,1716294639241,-500.0,0.00019178,2]
[327667513,1716294639251,-500.0,0.00019178,2]
[327667515,1716294639261,-500.0,0.00019178,2]
[327667517,1716294639271,-500.0,0.00019178,2]
[327667519,1716294639281,-500.0,0.00019178,2]
[327667521,1716294639291,-500.0,0.00019178,2]
[327667523,1716294639303,-500.0,0.00019178,2]
[327667525,1716294639313,-500.0,0.00019178,2]
[327667527,1716294639323,-500.0,0.00019178,2]
[327667529,1716294639332,-500.0,0.00019178,2]
[327667531,1716294639342,-500.0,0.00019178,2]
[327667533,1716294639352,-500.0,0.00019178,2]
[327667535,1716294639362,-500.0,0.00019178,2]
[327667537,1716294639374,-500.0,0.00019178,2]
[327667539,1716294639385,-500.0,0.00019178,2]
[327667541,1716294639395,-500.0,0.00019178,2]
[327667543,1716294639405,-500.0,0.00019178,2]
[327667545,1716294639415,-650.0,0.00019178,2]
[327667547,1716294639425,-500.0,0.00019178,2]
[327667549,1716294639436,-151.0,0.00019178,2]
[327667551,1716294639446,-500.0,0.00019178,2]
[327667553,1716294639455,-151.0,0.00019178,2]
[327667570,1716294639605,-500.0,0.00019178,2]
[327667573,1716294639642,-163.492418,0.00019178,2]
[327667575,1716294639653,-571.6767266,0.00021918,2]
[327667577,1716294639663,-355.581343,0.00021918,2]
[327667579,1716294639673,-355.581343,0.00021918,2]
[327667581,1716294639683,-203.310766,0.00021918,2]
[327667582,1716294639694,-203.310766,0.00021918,2]
[327667583,1716294639708,-155.0,0.00022,2]
[327667584,1716294639719,-244.764223,0.00022,2]
[327667585,1716294639730,-244.764223,0.00022,2]
[327667586,1716294639740,-170.35781374,0.000239,2]
[327667587,1716294639751,-196.910447,0.00024384,2]
[327667588,1716294639761,-250.5,0.00024794,5]
[327667589,1716294639770,-250.5,0.00024794,5]
[327667590,1716294639780,-151.0,0.00024999,2]
[327667591,1716294639791,-151.0,0.00024999,2]
[327667593,1716294639803,-355.581343,0.00024999,2]
[327667594,1716294639813,-355.581343,0.00024999,2]
[327667595,1716294639830,-203.310766,0.00024999,2]
[327667596,1716294639840,-203.310766,0.00024999,2]
[327667597,1716294639852,-377.387708,0.00024999,2]
[327667598,1716294639863,-377.387708,0.00024999,2]
[327667600,1716294639875,-151.0,0.00024999,2]
[327667602,1716294639885,-151.0,0.00024999,2]
[327667603,1716294639896,-151.0,0.00025,2]
[327667605,1716294639906,-176.793188,0.00025,2]
[327667607,1716294639916,-154.28404,0.00025,2]
[327667608,1716294639927,-154.28404,0.00025,2]
[327667609,1716294639936,-151.0,0.00025,2]
[327667610,1716294639947,-151.0,0.00025,2]
[327667611,1716294639957,-151.0,0.00025,2]
[327667612,1716294639966,-244.764223,0.00025,2]
[327667613,1716294639977,-244.764223,0.00025,2]
[327667614,1716294639987,-150.0,0.00025195,5]
[327667615,1716294639996,-150.0,0.00025195,5]
[327667616,1716294640007,-150.0,0.0002627,12]
[327667617,1716294640017,-202.0,0.000265,10]
[327667618,1716294640028,-755.94804685,0.0002739,2]
[327667619,1716294640038,-154.28404,0.0002739,2]
[327667620,1716294640047,-154.28404,0.0002739,2]
[327667621,1716294640058,-151.0,0.0002739,2]
[327667622,1716294640068,-151.0,0.0002739,2]
[327667623,1716294640078,-151.0,0.0002739,2]
[327667624,1716294640088,-244.764223,0.0002739,2]
[327667625,1716294640097,-244.764223,0.0002739,2]
[327667626,1716294640107,-355.581343,0.0002739,2]
[327667627,1716294640116,-355.581343,0.0002739,2]
[327667628,1716294640126,-203.310766,0.0002739,2]
[327667629,1716294640136,-203.310766,0.0002739,2]
[327667630,1716294640146,-151.0,0.0002739,2]
[327667631,1716294640155,-151.0,0.0002739,2]
[327667632,1716294640166,-377.387708,0.00027397,2]
[327667633,1716294640175,-377.387708,0.00027397,2]
[327667634,1716294640185,-204.35362166,0.00027397,2]
[327667635,1716294640195,-151.0,0.00027397,2]
[327667636,1716294640205,-151.0,0.00027397,2]
[327667637,1716294640215,-151.0,0.00027397,2]
[327667638,1716294640224,-151.0,0.00027397,2]
[327667639,1716294640234,-151.0,0.00027397,2]
[327667640,1716294640243,-151.0,0.00027397,2]
[327667641,1716294640253,-150.0,0.0002793,15]
[327667642,1716294640263,-250.5,0.00027995,5]
[327667643,1716294640273,-250.5,0.00027995,5]
[327667644,1716294640284,-150.0,0.00028076,7]
[327667645,1716294640295,-170.35781374,0.000289,2]
[327667646,1716294640309,-153.0,0.0002937,2]
[327667647,1716294640319,-150.0,0.0002958,19]
[327667648,1716294640329,-721.52066911,0.0003,2]
[327667649,1716294640339,-2450.931059,0.00030137,2]
[327667650,1716294640349,-2450.931059,0.00030137,2]
[327667651,1716294640359,-2450.931059,0.00030137,2]
[327667652,1716294640370,-2450.931059,0.00030137,2]
[327667653,1716294640380,-2450.931059,0.00030137,2]
[327667654,1716294640389,-2450.931059,0.00030137,2]
[327667655,1716294640400,-154.28404,0.00030137,2]
[327667656,1716294640410,-154.28404,0.00030137,2]
[327667657,1716294640420,-154.28404,0.00030137,2]
[327667658,1716294640430,-154.28404,0.00030137,2]
[327667659,1716294640440,-154.28404,0.00030137,2]
[327667660,1716294640450,-154.28404,0.00030137,2]
[327667661,1716294640459,-154.28404,0.00030137,2]
[327667662,1716294640469,-154.28404,0.00030137,2]
[327667663,1716294640479,-154.28404,0.00030137,2]
[327667664,1716294640488,-154.28404,0.00030137,2]
[327667665,1716294640498,-154.28404,0.00030137,2]
[327667666,1716294640508,-154.28404,0.00030137,2]
[327667668,1716294640518,-154.28404,0.00030137,2]
[327667669,1716294640528,-154.28404,0.00030137,2]
[327667671,1716294640539,-154.28404,0.00030137,2]
[327667673,1716294640549,-154.284041,0.00030137,2]
[327667675,1716294640561,-151.0,0.00030137,2]
[327667676,1716294640571,-151.0,0.00030137,2]
[327667678,1716294640580,-151.0,0.00030137,2]
[327667679,1716294640590,-151.0,0.00030137,2]
[327667680,1716294640599,-151.0,0.00030137,2]
[327667681,1716294640609,-240.646003,0.00030137,2]
[327667682,1716294640619,-151.0,0.00030137,2]
[327667683,1716294640629,-151.0,0.00030137,2]
[327667684,1716294640638,-151.0,0.00030137,2]
[327667685,1716294640648,-151.0,0.00030137,2]
[327667686,1716294640658,-151.0,0.00030137,2]
[327667687,1716294640668,-151.0,0.00030137,2]
[327667688,1716294640678,-151.0,0.00030137,2]
[327667689,1716294640688,-151.0,0.00030137,2]
[327667690,1716294640697,-273.89964,0.00030137,2]
[327667691,1716294640708,-244.764223,0.00030137,2]
[327667692,1716294640718,-244.764223,0.00030137,2]
[327667693,1716294640728,-244.764223,0.00030137,2]
[327667694,1716294640738,-244.764223,0.00030137,2]
[327667695,1716294640748,-244.764223,0.00030137,2]
[327667696,1716294640758,-244.764223,0.00030137,2]
[327667697,1716294640767,-244.764223,0.00030137,2]
[327667698,1716294640776,-244.764223,0.00030137,2]
[327667699,1716294640786,-244.764223,0.00030137,2]
[327667700,1716294640796,-244.764223,0.00030137,2]
[327667701,1716294640807,-244.764223,0.00030137,2]
[327667702,1716294640820,-244.764223,0.00030137,2]
[327667703,1716294640832,-244.764223,0.00030137,2]
[327667704,1716294640842,-244.764227,0.00030137,2]
[327667705,1716294640852,-355.581343,0.00030137,2]
[327667706,1716294640863,-355.581343,0.00030137,2]
[327667707,1716294640873,-355.581343,0.00030137,2]
[327667708,1716294640883,-355.581343,0.00030137,2]
[327667709,1716294640894,-355.581343,0.00030137,2]
[327667710,1716294640905,-355.581343,0.00030137,2]